bitfinex-derivatives/quotes_BTCF0:USTF0_20250417
["timestamp","ask_amount","ask_price","bid_price","bid_amount"]
[1744850983946,8e-05,84154.0,84153.0,0.2688406]
[1744850985747,0.3608,84156.0,84155.0,0.1188378]
[1744850985949,0.3608,84156.0,84155.0,0.2688378]
[1744850987249,0.36088,84156.0,84155.0,0.2698378]
[1744850987450,8e-05,84156.0,84155.0,0.2698378]
[1744850988343,0.00017821,84161.0,84159.0,0.1188307]
[1744850988544,0.11893951,84160.0,84159.0,0.2688307]
[1744850989148,0.15053951,84160.0,84159.0,0.2688307]
[1744850989651,0.18223951,84160.0,84159.0,0.2688307]
[1744850990142,0.18123951,84160.0,84159.0,0.2688307]
[1744850990343,0.18223951,84160.0,84159.0,0.2688307]
[1744850991146,0.18223951,84160.0,84159.0,0.3003307]
[1744850991846,0.18323951,84160.0,84159.0,0.3003307]
[1744850992438,0.03270801,84160.0,84159.0,0.3003307]
[1744850992944,0.15153871,84160.0,84159.0,0.3003307]
[1744850993346,0.18233871,84160.0,84159.0,0.3003307]
[1744850994942,0.03270801,84160.0,84159.0,0.3003307]
[1744850995144,0.00110801,84160.0,84159.0,0.3003307]
[1744850996840,0.00010801,84160.0,84159.0,0.3003307]
[1744850999247,0.03057821,84161.0,84160.0,0.1188307]
[1744850999448,0.03057821,84161.0,84160.0,0.2688307]
[1744850999748,0.03057821,84161.0,84160.0,0.2994307]
[1744851000349,0.15040751,84161.0,84160.0,0.2688307]
[1744851000949,0.03157821,84161.0,84160.0,0.2688307]
[1744851001353,0.15040751,84161.0,84160.0,0.2688307]
[1744851002453,0.15140751,84161.0,84160.0,0.2698307]
[1744851003047,0.15040751,84161.0,84160.0,0.2688307]
[1744851004655,0.03157821,84161.0,84160.0,0.2688307]
[1744851005253,0.18270751,84161.0,84160.0,0.2688307]
[1744851005763,0.06387821,84161.0,84160.0,0.2688307]
[1744851006152,0.06387821,84161.0,84160.0,0.3333307]
[1744851007054,0.06287821,84161.0,84160.0,0.3333307]
[1744851007256,0.06387821,84161.0,84160.0,0.3333307]
[1744851007457,0.18270751,84161.0,84160.0,0.3018307]
[1744851008969,0.18270751,84161.0,84160.0,0.2688307]
[1744851009555,0.18270751,84161.0,84160.0,0.15]
[1744851011765,0.18270751,84161.0,84160.0,0.2688307]
[1744851011968,0.06387821,84161.0,84160.0,0.2688307]
[1744851012157,0.18270751,84161.0,84160.0,0.2688307]
[1744851016067,0.18278751,84161.0,84160.0,0.2688307]
[1744851018467,0.18278751,84161.0,84160.0,0.15]
[1744851018667,0.0594238,84149.0,84145.0,0.01]
[1744851018862,0.3608,84146.0,84145.0,0.01]
[1744851019061,0.4796519,84146.0,84145.0,0.1188519]
[1744851019259,0.4796519,84146.0,84144.0,0.00017821]
[1744851019260,0.1188519,84145.0,84144.0,0.00017821]
[1744851019468,0.1514519,84145.0,84144.0,0.00017821]
[1744851019665,0.1514519,84145.0,84144.0,0.11903151]
[1744851019865,0.1837519,84145.0,84144.0,0.11903151]
[1744851021272,0.1857519,84145.0,84144.0,0.11903151]
[1744851021671,0.1867519,84145.0,84144.0,0.11903151]
[1744851021874,0.0353,84145.0,84144.0,0.27903151]
[1744851022173,0.003,84145.0,84144.0,0.27903151]
[1744851022377,0.003,84145.0,84144.0,0.31163151]
[1744851022974,0.1188481,84148.0,84147.0,0.1188491]
[1744851023173,0.1188481,84148.0,84147.0,0.2988491]
[1744851023378,0.0594225,84150.0,84149.0,0.1188463]
[1744851023579,0.0594225,84150.0,84149.0,0.2788463]
[1744851024079,0.0594225,84150.0,84149.0,0.3120463]
[1744851025075,0.0594225,84150.0,84149.0,0.16]
[1744851025481,0.0604225,84150.0,84149.0,0.16]
[1744851026083,0.0604225,84150.0,84149.0,0.2788463]
[1744851026474,0.0604225,84150.0,84149.0,0.1188463]
[1744851027074,0.0604225,84150.0,84149.0,0.3118463]
[1744851027469,0.0594225,84150.0,84149.0,0.3118463]
[1744851027673,0.0624225,84150.0,84149.0,0.3128463]
[1744851027981,0.0644225,84150.0,84149.0,0.3128463]
[1744851028175,0.0634225,84150.0,84149.0,0.3128463]
[1744851028876,0.0624225,84150.0,84149.0,0.3128463]
[1744851030282,0.003,84150.0,84149.0,0.3128463]
[1744851030577,0.003,84150.0,84149.0,0.6736463]
[1744851030777,0.001,84150.0,84149.0,0.3118463]
[1744851030981,0.003,84150.0,84149.0,0.3118463]
[1744851031876,0.001,84150.0,84149.0,0.3118463]
[1744851032081,0.002,84150.0,84149.0,0.3138463]
[1744851032485,0.001,84150.0,84149.0,0.3138463]
[1744851032780,0.001,84150.0,84149.0,0.3148463]
[1744851033478,0.1198449,84150.0,84149.0,0.196]
[1744851034480,0.1198449,84150.0,84149.0,0.3148463]
[1744851035083,0.1188449,84150.0,84149.0,0.3138463]
[1744851035275,0.1198449,84150.0,84149.0,0.3148463]
[1744851035777,0.1208449,84150.0,84149.0,0.3128463]
[1744851035979,0.1218449,84150.0,84149.0,0.3118463]
[1744851037473,0.1198449,84150.0,84149.0,0.3118463]
[1744851037673,0.1208449,84150.0,84149.0,0.3118463]
[1744851038178,0.002,84150.0,84149.0,0.3118463]
[1744851038579,0.1188408,84153.0,84152.0,0.1188406]
[1744851038788,0.1188408,84153.0,84152.0,0.3738406]
[1744851040787,0.1198408,84153.0,84152.0,0.3738406]
[1744851041085,0.1199208,84153.0,84152.0,0.3738406]
[1744851041281,0.1189208,84153.0,84152.0,0.3738406]
[1744851041485,0.1199208,84153.0,84152.0,0.3738406]
[1744851041688,0.1502208,84153.0,84152.0,0.3738406]
[1744851042387,0.1512208,84153.0,84152.0,0.3738406]
[1744851042587,0.1843208,84153.0,84152.0,0.3738406]
[1744851043291,0.1833208,84153.0,84152.0,0.3738406]
[1744851045190,0.1823208,84153.0,84152.0,0.3738406]
[1744851045493,0.1833208,84153.0,84152.0,0.3738406]
[1744851045990,0.1833208,84153.0,84152.0,0.3433406]
[1744851046182,0.1833208,84153.0,84152.0,0.1916]
[1744851046385,0.1188477,84148.0,84147.0,0.118849]
[1744851046585,0.1188477,84148.0,84147.0,0.198849]
[1744851047086,0.19325639,84148.0,84147.0,0.198849]
[1744851047588,0.19325639,84148.0,84147.0,0.08]
[1744851048085,0.19325639,84148.0,84147.0,0.081]
[1744851048284,0.1815477,84148.0,84147.0,0.1998491]
[1744851048590,0.1815477,84148.0,84147.0,0.2008491]
[1744851048788,0.1815477,84148.0,84147.0,0.2336491]
[1744851049287,0.1815477,84148.0,84147.0,0.2656491]
[1744851050880,0.1815477,84148.0,84147.0,0.114]
[1744851051077,0.1815477,84148.0,84147.0,0.082]
[1744851051279,0.1815477,84148.0,84147.0,0.002]
[1744851052689,0.1835477,84148.0,84147.0,0.001]
[1744851054185,0.1188519,84145.0,84144.0,0.00017821]
[1744851055392,0.1208519,84145.0,84144.0,0.00117821]
[1744851055799,0.1218519,84145.0,84144.0,0.00117821]
[1744851057594,0.1218519,84145.0,84144.0,0.30003151]
[1744851058499,0.1218519,84145.0,84144.0,0.36403151]
[1744851058500,0.003,84145.0,84144.0,0.36403151]
[1744851058699,0.003,84145.0,84144.0,0.72483151]
[1744851061299,0.1218519,84145.0,84144.0,0.33193151]
[1744851062090,0.2161519,84145.0,84144.0,0.15193151]
[1744851064997,0.1533519,84145.0,84144.0,0.31193151]
[1744851065798,0.003,84145.0,84144.0,0.31193151]
[1744851071611,0.003,84145.0,84144.0,0.67273151]
[1744851073106,0.003,84145.0,84144.0,0.31193151]
[1744851074608,0.003,84145.0,84144.0,0.32193151]
[1744851075902,8e-05,84155.0,84154.0,0.1188392]
[1744851076208,0.1506322,84159.0,84158.0,0.1188336]
[1744851076406,0.15074021,84159.0,84158.0,0.2788336]
[1744851077006,0.03190801,84159.0,84158.0,0.2788336]
[1744851077707,0.00710801,84159.0,84158.0,0.2798336]
[1744851078504,0.00010801,84159.0,84158.0,0.2788336]
[1744851078709,0.00010801,84159.0,84158.0,0.2798336]
[1744851079014,0.00410801,84159.0,84158.0,0.2798336]
[1744851079915,0.00010801,84159.0,84158.0,0.2808336]
[1744851080812,0.00017821,84161.0,84160.0,0.1188307]
[1744851081113,0.00017821,84161.0,84160.0,0.2888307]
[1744851081313,0.00017821,84161.0,84160.0,0.3521307]
[1744851081510,0.0313,84169.0,84168.0,0.1188195]
[1744851081708,0.0313,84169.0,84168.0,0.6496195]
[1744851082217,0.00019684,84170.0,84169.0,0.118818]
[1744851082412,0.00019684,84170.0,84169.0,0.288818]
[1744851082616,0.00019684,84170.0,84169.0,0.351118]
[1744851082917,0.005,84176.0,84175.0,0.1188096]
[1744851083113,0.005,84176.0,84175.0,0.2688096]
[1744851083315,0.00508,84176.0,84175.0,0.2688096]
[1744851084418,0.01208,84176.0,84175.0,0.2698096]
[1744851085115,0.012,84176.0,84175.0,0.2698096]
[1744851086218,0.012,84176.0,84175.0,0.6306096]
[1744851086409,0.01208,84176.0,84175.0,0.6306096]
[1744851087209,0.0593893,84197.0,84190.0,0.059394]
[1744851087409,0.03,84191.0,84190.0,0.3581824]
[1744851087919,0.03008,84191.0,84190.0,0.3581824]
[1744851088613,0.03,84191.0,84190.0,0.3882824]
[1744851089110,0.03008,84191.0,84190.0,0.3882824]
[1744851089510,0.03708,84191.0,84190.0,0.3892824]
[1744851089908,0.037,84191.0,84190.0,0.3892824]
[1744851090420,0.04108,84191.0,84190.0,0.3892824]
[1744851090721,0.041,84191.0,84190.0,0.3892824]
[1744851090917,0.011,84191.0,84190.0,0.3892824]
[1744851091220,0.0329,84193.0,84192.0,0.1187856]
[1744851091221,0.00010801,84193.0,84192.0,0.1187856]
[1744851091529,0.00010801,84193.0,84192.0,0.2987856]
[1744851091717,0.00010801,84193.0,84192.0,0.3087856]
[1744851093323,0.0617,84198.0,84197.0,0.1187785]
[1744851093527,0.0617,84198.0,84197.0,0.2987785]
[1744851094021,0.06178,84198.0,84197.0,0.3612785]
[1744851094224,8e-05,84198.0,84197.0,0.3612785]
[1744851094814,0.00508,84198.0,84197.0,0.3612785]
[1744851095213,0.00508,84198.0,84197.0,0.3712785]
[1744851095415,0.005,84198.0,84197.0,0.3712785]
[1744851095617,0.1,84200.0,84197.0,0.2525]
[1744851095818,0.00014581,84206.0,84204.0,0.0593842]
[1744851096010,0.00014581,84206.0,84205.0,0.2707502]
[1744851096216,0.0327,84208.0,84207.0,0.1187644]
[1744851096412,0.0327,84208.0,84207.0,0.6295644]
[1744851096820,0.03278,84208.0,84207.0,0.6295644]
[1744851097519,0.03578,84208.0,84207.0,0.6295644]
[1744851097716,0.07388,84208.0,84207.0,0.6295644]
[1744851097912,0.0738,84208.0,84207.0,0.6295644]
[1744851098926,0.07388,84208.0,84207.0,0.6295644]
[1744851099310,0.0738,84208.0,84207.0,0.6295644]
[1744851099712,0.07388,84208.0,84207.0,0.6295644]
[1744851107031,0.07388,84208.0,84207.0,0.2687644]
[1744851107326,0.07388,84208.0,84207.0,0.6295644]
[1744851109720,0.04078,84208.0,84207.0,0.6295644]
[1744851109928,0.00010801,84213.0,84212.0,0.1187574]
[1744851110123,0.00196134,84231.0,84215.0,0.0593763]
[1744851110325,0.00196134,84231.0,84227.0,0.1187362]
[1744851110521,0.00196134,84231.0,84227.0,0.2787362]
[1744851111223,0.0312,84230.0,84227.0,0.2787362]
[1744851111424,0.0312,84230.0,84227.0,0.3098362]
[1744851111727,0.0301,84229.0,84227.0,0.3098362]
[1744851111928,0.005,84228.0,84227.0,0.3098362]
[1744851112227,0.0362,84228.0,84227.0,0.3098362]
[1744851112925,0.0372,84228.0,84227.0,0.3098362]
[1744851113718,0.03728,84228.0,84227.0,0.3098362]
[1744851114633,0.1187058,84249.0,84240.0,0.1187179]
[1744851114826,0.0306,84246.0,84240.0,0.2787179]
[1744851115623,0.0306,84246.0,84245.0,0.1187109]
[1744851115825,0.0306,84246.0,84245.0,0.2687109]
[1744851116224,0.03068,84246.0,84245.0,0.2687109]
[1744851116533,0.03068,84246.0,84245.0,0.2958109]
[1744851116928,0.0306,84246.0,84245.0,0.3266109]
[1744851117233,0.0346,84246.0,84245.0,0.3266109]
[1744851117631,0.06608,84246.0,84245.0,0.3266109]
[1744851117831,0.066,84246.0,84245.0,0.3266109]
[1744851118233,0.06608,84246.0,84245.0,0.3266109]
[1744851120737,0.066,84246.0,84245.0,0.3266109]
[1744851121223,0.066,84246.0,84245.0,0.1147109]
[1744851121624,0.1847094,84246.0,84245.0,0.1147109]
[1744851123242,0.066,84246.0,84245.0,0.1147109]
[1744851123445,0.1847094,84246.0,84245.0,0.1147109]
[1744851123940,0.066,84246.0,84245.0,0.1457109]
[1744851124333,0.066,84246.0,84245.0,0.3067109]
[1744851125341,0.1847094,84246.0,84245.0,0.3057109]
[1744851125536,0.1847094,84246.0,84245.0,0.3067109]
[1744851125736,0.1847094,84246.0,84245.0,0.2757109]
[1744851126041,0.1807094,84246.0,84245.0,0.2797109]
[1744851127136,0.1807094,84246.0,84245.0,0.2757109]
[1744851127442,0.1807094,84246.0,84245.0,0.2797109]
[1744851127642,0.1807094,84246.0,84245.0,0.2787109]
[1744851127841,0.1807094,84246.0,84245.0,0.1197109]
[1744851129050,0.062,84246.0,84245.0,0.1529109]
[1744851129244,0.0314,84246.0,84245.0,0.1858109]
[1744851129541,0.1501094,84246.0,84245.0,0.1858109]
[1744851129742,0.1807094,84246.0,84245.0,0.1858109]
[1744851129945,0.1807094,84246.0,84245.0,0.005]
[1744851130243,0.1807094,84246.0,84228.0,0.01]
[1744851130244,0.1187207,84238.0,84228.0,0.01]
[1744851130536,0.4795207,84238.0,84225.0,0.0332]
[1744851130741,0.4795207,84238.0,84224.0,0.4201702]
[1744851130742,0.1187376,84227.0,84226.0,0.1187369]
[1744851131137,0.2152376,84227.0,84226.0,0.1187369]
[1744851131334,0.0593688,84226.0,84222.0,0.0319]
[1744851131545,0.1187489,84218.0,84217.0,0.12006072]
[1744851131734,0.1187489,84218.0,84217.0,0.15196072]
[1744851131938,0.1187489,84218.0,84217.0,0.18236072]
[1744851132634,0.1822489,84218.0,84217.0,0.18236072]
[1744851132942,0.1822489,84218.0,84217.0,0.18244072]
[1744851133339,0.1822489,84218.0,84217.0,0.00639512]
[1744851133833,0.1822489,84218.0,84217.0,0.12514542]
[1744851134240,0.05954719,84226.0,84225.0,0.118739]
[1744851134547,0.05954719,84226.0,84225.0,0.268739]
[1744851135041,0.1781203,84221.0,84220.0,0.1187452]
[1744851135245,0.1187475,84219.0,84218.0,8e-05]
[1744851135544,0.1187489,84218.0,84217.0,0.00631512]
[1744851136038,0.1187489,84218.0,84217.0,0.12506542]
[1744851136540,0.1187489,84218.0,84217.0,0.12406542]
[1744851136938,0.1187489,84218.0,84217.0,0.12314542]
[1744851137140,0.1187489,84218.0,84217.0,0.00439512]
[1744851138239,0.1187489,84218.0,84217.0,0.00431512]
[1744851138437,0.1187489,84218.0,84217.0,0.00439512]
[1744851138838,0.1187489,84218.0,84217.0,0.00431512]
[1744851139738,0.1187489,84218.0,84217.0,0.00439512]
[1744851140835,0.1187489,84218.0,84206.0,0.0001458]
[1744851140836,0.1187644,84207.0,84206.0,0.1189102]
[1744851141035,0.4795644,84207.0,84206.0,0.1189102]
[1744851141337,0.4795644,84207.0,84206.0,0.1187644]
[1744851141539,0.1187644,84207.0,84206.0,0.1187644]
[1744851141737,0.1187644,84207.0,84206.0,0.1188444]
[1744851141945,0.1187644,84207.0,84206.0,0.03268]
[1744851142142,0.1519644,84207.0,84206.0,0.03268]
[1744851142539,0.1519644,84207.0,84206.0,0.1514458]
[1744851143048,0.16087565,84207.0,84206.0,0.1514458]
[1744851143444,0.16087565,84207.0,84206.0,0.1534458]
[1744851144241,0.16087565,84207.0,84206.0,0.1544458]
[1744851145443,0.16087565,84207.0,84206.0,0.1534458]
[1744851145847,0.16087565,84207.0,84206.0,0.1514458]
[1744851146043,0.12767565,84207.0,84206.0,0.3134458]
[1744851147552,0.12767565,84207.0,84206.0,0.3114458]
[1744851147752,0.12767565,84207.0,84206.0,0.3134458]
[1744851149044,0.1187644,84207.0,84206.0,0.3114458]
[1744851149245,0.1187644,84207.0,84206.0,0.3134458]
[1744851149654,0.1187644,84207.0,84206.0,0.3114458]
[1744851149956,0.1187644,84207.0,84206.0,0.3134458]
[1744851150250,0.4795618,84210.0,84209.0,0.1187616]
[1744851151041,0.4795618,84210.0,84209.0,0.1490616]
[1744851152049,0.4795618,84210.0,84209.0,0.1500616]
[1744851152942,0.4795618,84210.0,84209.0,0.1520616]
[1744851154055,0.4795618,84210.0,84209.0,0.1530616]
[1744851154444,0.1187618,84210.0,84209.0,0.1530616]
[1744851156957,0.4795618,84210.0,84209.0,0.1530616]
[1744851158651,0.4795618,84210.0,84209.0,0.1520616]
[1744851159453,0.4795618,84210.0,84209.0,0.0333]
[1744851159651,0.5096618,84210.0,84209.0,0.1520616]
[1744851160453,0.5096618,84210.0,84209.0,0.1510616]
[1744851160454,0.4795618,84210.0,84209.0,0.1510616]
[1744851162053,0.4795618,84210.0,84209.0,0.1490616]
[1744851162256,0.4795618,84210.0,84209.0,0.1510616]
[1744851163758,0.4795618,84210.0,84209.0,0.1520616]
[1744851164553,0.059565,84215.0,84214.0,0.1187546]
[1744851165560,0.059645,84215.0,84214.0,0.1187546]
[1744851165764,0.000268,84215.0,84214.0,0.1487546]
[1744851165949,0.000188,84215.0,84214.0,0.1487546]
[1744851166155,0.000268,84215.0,84214.0,0.1487546]
[1744851166353,0.08861734,84217.0,84216.0,0.1187517]
[1744851166572,0.08861734,84217.0,84216.0,0.2887517]
[1744851166962,0.00017809,84226.0,84225.0,0.118739]
[1744851167160,0.00017809,84226.0,84225.0,0.288739]
[1744851167462,0.00025809,84226.0,84225.0,0.288739]
[1744851167660,0.00017809,84226.0,84225.0,0.352139]
[1744851168062,0.00025809,84226.0,84225.0,0.352139]
[1744851168558,0.00025809,84226.0,84225.0,0.357139]
[1744851168954,0.00025809,84226.0,84225.0,0.352139]
[1744851169154,0.00025809,84226.0,84225.0,0.357139]
[1744851169361,0.00025809,84226.0,84225.0,0.359139]
[1744851170153,0.11899569,84226.0,84225.0,0.359139]
[1744851170357,0.11891569,84226.0,84225.0,0.359139]
[1744851170762,0.11891569,84226.0,84225.0,0.357139]
[1744851170955,0.11899569,84226.0,84225.0,0.358139]
[1744851171460,0.11899569,84226.0,84225.0,0.356139]
[1744851171962,0.11891569,84226.0,84225.0,0.356139]
[1744851172266,0.11899569,84226.0,84225.0,0.356139]
[1744851174656,0.11899569,84226.0,84225.0,0.355139]
[1744851174963,0.11899569,84226.0,84225.0,0.356139]
[1744851175462,0.11899569,84226.0,84225.0,0.355139]
[1744851175661,0.11899569,84226.0,84225.0,0.357139]
[1744851176854,0.11899569,84226.0,84225.0,0.358139]
[1744851177055,0.11899569,84226.0,84225.0,0.356139]
[1744851177260,0.11899569,84226.0,84225.0,0.357139]
[1744851178064,0.11899569,84226.0,84225.0,0.156439]
[1744851178464,0.11899569,84226.0,84225.0,0.155439]
[1744851178660,0.11899569,84226.0,84225.0,0.156439]
[1744851180264,0.11899569,84226.0,84225.0,0.155439]
[1744851181260,0.18229569,84226.0,84225.0,0.155439]
[1744851184168,0.18229569,84226.0,84225.0,0.004]
[1744851184874,0.18229569,84226.0,84225.0,0.122739]
[1744851185275,0.18229569,84226.0,84225.0,0.118739]
[1744851185467,0.18229569,84226.0,84225.0,0.122739]
[1744851185669,0.11899569,84226.0,84225.0,0.346439]
[1744851186070,0.11891569,84226.0,84225.0,0.346439]
[1744851186480,0.11899569,84226.0,84225.0,0.346439]
[1744851187177,0.11899569,84226.0,84225.0,0.343439]
[1744851187874,0.11899569,84226.0,84225.0,0.345439]
[1744851188466,0.00025809,84226.0,84225.0,0.346439]
[1744851188674,0.11899569,84226.0,84225.0,0.346439]
[1744851188873,0.00025809,84226.0,84225.0,0.346439]
[1744851189091,0.00025809,84226.0,84225.0,0.347439]
[1744851189872,0.00017809,84226.0,84225.0,0.347439]
[1744851190173,0.00025809,84226.0,84225.0,0.348439]
[1744851190680,0.00025809,84226.0,84225.0,0.344439]
[1744851190876,0.00025809,84226.0,84225.0,0.347439]
[1744851191078,0.00025809,84226.0,84225.0,0.349439]
[1744851191674,0.00010801,84235.0,84234.0,0.1187264]
[1744851191879,0.00010801,84235.0,84234.0,0.2687264]
[1744851192181,0.0593578,84242.0,84234.0,0.2687264]
[1744851192182,0.1780735,84242.0,84241.0,0.1187165]
[1744851192372,0.1780735,84242.0,84241.0,0.2687165]
[1744851192686,0.1780735,84242.0,84241.0,0.1187165]
[1744851193182,0.1780735,84242.0,84241.0,0.1518165]
[1744851193483,0.2403735,84242.0,84241.0,0.1518165]
[1744851194488,0.2403735,84242.0,84241.0,0.1528165]
[1744851194975,0.2403735,84242.0,84241.0,0.1548165]
[1744851195175,0.2403735,84242.0,84241.0,0.1558165]
[1744851195383,0.2080735,84242.0,84241.0,0.1558165]
[1744851196590,0.2080735,84242.0,84241.0,0.1538165]
[1744851197284,0.2080735,84242.0,84241.0,0.1548165]
[1744851197890,0.2080735,84242.0,84241.0,0.1528165]
[1744851198186,0.2080735,84242.0,84241.0,0.1548165]
[1744851198487,0.2080735,84242.0,84241.0,0.1528165]
[1744851198685,0.2080735,84242.0,84241.0,0.1558165]
[1744851201383,0.2080735,84242.0,84241.0,0.003]
[1744851201589,0.2080735,84242.0,84241.0,0.1187165]
[1744851201888,0.2080735,84242.0,84241.0,0.1207165]
[1744851202084,0.1206578,84242.0,84241.0,0.1207165]
[1744851202680,0.1206578,84242.0,84241.0,0.002]
[1744851202880,0.1206578,84242.0,84241.0,0.003]
[1744851203596,0.1206578,84242.0,84241.0,0.002]
[1744851204780,0.1187235,84236.0,84235.0,0.1187243]
[1744851204986,0.4795235,84236.0,84235.0,0.1187243]
[1744851205697,0.5102235,84236.0,84235.0,0.1820243]
[1744851205890,0.5102235,84236.0,84235.0,0.1850243]
[1744851207585,0.5102235,84236.0,84235.0,0.1860243]
[1744851207790,0.4795235,84236.0,84235.0,0.1860243]
[1744851208386,0.4795235,84236.0,84235.0,0.1830243]
[1744851208585,0.4795235,84236.0,84235.0,0.1860243]
[1744851211984,0.1187235,84236.0,84235.0,0.3560243]
[1744851212384,0.1188035,84236.0,84235.0,0.3560243]
[1744851215093,0.1188035,84236.0,84235.0,0.3530243]
[1744851215294,0.1188035,84236.0,84235.0,0.3570243]
[1744851215694,0.1188035,84236.0,84235.0,0.3560243]
[1744851215894,8e-05,84236.0,84235.0,0.3570243]
[1744851216497,8e-05,84236.0,84235.0,0.3877243]
[1744851216699,0.21158713,84242.0,84241.0,0.1187165]
[1744851216902,0.21158713,84242.0,84241.0,0.2887165]
[1744851217489,0.21166713,84242.0,84241.0,0.3505165]
[1744851217894,0.21166713,84242.0,84241.0,0.3545165]
[1744851218094,0.21158713,84242.0,84241.0,0.3545165]
[1744851219301,0.21166713,84242.0,84241.0,0.3545165]
[1744851220005,0.21166713,84242.0,84241.0,0.3565165]
[1744851220207,8e-05,84242.0,84241.0,0.3565165]
[1744851222800,0.1187951,84242.0,84241.0,0.3565165]
[1744851224399,0.1187951,84242.0,84241.0,0.1865165]
[1744851224600,0.1187951,84242.0,84241.0,0.1564165]
[1744851226803,0.1187951,84242.0,84241.0,0.1554165]
[1744851227010,0.1187951,84242.0,84241.0,0.1534165]
[1744851228210,0.1187951,84242.0,84241.0,0.1544165]
[1744851229013,8e-05,84242.0,84241.0,0.3044165]
[1744851229409,0.1187951,84242.0,84241.0,0.3044165]
[1744851229810,0.1187151,84242.0,84241.0,0.3044165]
[1744851230005,0.1187151,84242.0,84241.0,0.1857]
[1744851230210,0.1187151,84242.0,84235.0,0.0313]
[1744851230211,0.1780929,84234.0,84233.0,0.1187269]
[1744851230914,0.0593637,84234.0,84233.0,0.1187269]
[1744851231300,0.1229637,84234.0,84233.0,0.1247269]
[1744851231911,0.1229637,84234.0,84233.0,0.1237269]
[1744851232901,0.1229637,84234.0,84233.0,0.1257269]
[1744851235322,0.0907637,84234.0,84233.0,0.1257269]
[1744851235523,0.1780804,84240.0,84239.0,0.1187193]
[1744851235726,0.1780804,84240.0,84239.0,0.2887193]
[1744851236318,0.1780804,84240.0,84239.0,0.3502193]
[1744851236518,0.1781604,84240.0,84239.0,0.3502193]
[1744851237024,0.1781604,84240.0,84239.0,0.3522193]
[1744851237224,0.2101604,84240.0,84239.0,0.3522193]
[1744851238019,0.2101604,84240.0,84239.0,0.3512193]
[1744851238219,0.2101604,84240.0,84239.0,0.3542193]
[1744851238726,0.2101604,84240.0,84239.0,0.3532193]
[1744851238922,0.2101604,84240.0,84239.0,0.3552193]
[1744851239323,0.1781604,84240.0,84239.0,0.3552193]
[1744851240322,0.1781604,84240.0,84239.0,0.3562193]
[1744851240717,0.2104604,84240.0,84239.0,0.3562193]
[1744851242935,0.1781604,84240.0,84239.0,0.3562193]
[1744851243126,0.0594391,84240.0,84239.0,0.3562193]
[1744851243525,0.0593591,84240.0,84239.0,0.3562193]
[1744851244033,0.0594391,84240.0,84239.0,0.3562193]
[1744851246438,0.0895391,84240.0,84239.0,0.3562193]
[1744851246738,0.0895391,84240.0,84239.0,0.1862193]
[1744851249339,0.0594391,84240.0,84239.0,0.1862193]
[1744851250635,0.0594391,84240.0,84239.0,0.1962193]
[1744851250830,8e-05,84240.0,84239.0,0.1962193]
[1744851253032,0.6610184,84247.0,84246.0,0.1187094]
[1744851253232,0.661017,84247.0,84246.0,0.2687094]
[1744851253739,0.691197,84247.0,84246.0,0.2687094]
[1744851253926,0.691197,84247.0,84246.0,0.3654094]
[1744851254529,0.691197,84247.0,84246.0,0.3664094]
[1744851254738,0.330397,84247.0,84246.0,0.3664094]
[1744851255040,0.148888,84247.0,84246.0,0.3664094]
[1744851255538,0.148888,84247.0,84246.0,0.2164094]
[1744851256535,0.181888,84247.0,84246.0,0.2154094]
[1744851256737,0.181888,84247.0,84246.0,0.2164094]
[1744851257238,0.181888,84247.0,84246.0,0.1856094]
[1744851257439,0.181888,84247.0,84246.0,0.1866094]
[1744851261542,0.542688,84247.0,84246.0,0.1866094]
[1744851263051,0.542688,84247.0,84246.0,0.1548094]
[1744851263747,0.181888,84247.0,84246.0,0.1548094]
[1744851265951,0.181888,84247.0,84246.0,0.003]
[1744851267053,0.181888,84247.0,84246.0,0.1217094]
[1744851269243,0.181888,84247.0,84246.0,0.1546094]
[1744851273960,0.542688,84247.0,84246.0,0.003]
[1744851274149,0.542688,84247.0,84239.0,0.0324]
[1744851274150,0.1187193,84239.0,84232.0,0.0628]
[1744851274352,0.4795193,84239.0,84232.0,0.181528]
[1744851274554,0.1187264,84234.0,84233.0,0.0308]
[1744851274749,0.118739,84225.0,84224.0,0.0628]
[1744851274956,0.118739,84225.0,84224.0,0.1508405]
[1744851276859,0.13035901,84227.0,84226.0,0.1187362]
[1744851277063,0.13035901,84227.0,84226.0,0.2887362]
[1744851277263,0.13035901,84227.0,84226.0,0.3303362]
[1744851278264,0.13035901,84227.0,84226.0,0.3323362]
[1744851278662,0.13035901,84227.0,84226.0,0.1823362]
[1744851279276,0.13035901,84227.0,84226.0,0.1531362]
[1744851279460,0.58585901,84227.0,84226.0,0.0344]
[1744851279660,0.58585901,84227.0,84226.0,0.1531376]
[1744851279968,0.58585901,84227.0,84226.0,0.1521376]
[1744851280154,0.58585901,84227.0,84226.0,0.1511376]
[1744851280358,0.58585901,84227.0,84226.0,0.1541376]
[1744851280865,0.58585901,84227.0,84226.0,0.1511376]
[1744851281053,0.58585901,84227.0,84226.0,0.1531376]
[1744851281258,0.19375901,84227.0,84226.0,0.1531376]
[1744851281463,0.52265901,84227.0,84226.0,0.1531376]
[1744851282353,0.52265901,84227.0,84226.0,0.1521376]
[1744851282561,0.52265901,84227.0,84226.0,0.1531376]
[1744851283368,0.52265901,84227.0,84226.0,0.1521376]
[1744851283668,0.52265901,84227.0,84226.0,0.1531376]
[1744851284864,0.52265901,84227.0,84226.0,0.0344]
[1744851285062,0.55425901,84227.0,84226.0,0.0344]
[1744851285261,0.55425901,84227.0,84226.0,0.0334]
[1744851285460,0.43552221,84227.0,84220.0,0.03078]
[1744851285659,0.1187447,84221.0,84220.0,8e-05]
[1744851286058,0.1187489,84218.0,84217.0,0.0308]
[1744851286559,0.1187503,84217.0,84216.0,0.11892959]
[1744851286762,0.4795503,84217.0,84216.0,0.00017809]
[1744851287160,0.4795503,84217.0,84216.0,0.00025809]
[1744851287355,0.5416503,84217.0,84216.0,0.00025809]
[1744851287968,0.5416503,84217.0,84216.0,0.00017809]
[1744851288270,0.5416503,84217.0,84216.0,0.00025809]
[1744851289463,0.5426503,84217.0,84216.0,0.11900979]
[1744851290560,0.5116503,84217.0,84216.0,0.14940979]
[1744851291368,0.4805503,84217.0,84216.0,0.31940979]
[1744851291674,0.36188,84217.0,84216.0,0.31940979]
[1744851291867,0.3618,84217.0,84216.0,0.31940979]
[1744851292068,0.001,84217.0,84216.0,0.31940979]
[1744851292264,0.1197503,84217.0,84216.0,0.31940979]
[1744851292670,0.1188303,84217.0,84216.0,0.31940979]
[1744851293261,0.1188303,84217.0,84216.0,0.32540979]
[1744851294262,0.1188303,84217.0,84216.0,0.32440979]
[1744851294770,0.1188303,84217.0,84216.0,0.32340979]
[1744851295563,0.1188303,84217.0,84216.0,0.32440979]